{"text_format":"2","workbook":"xlsx","n_sheets":1,"sheets":["phenodata"],"not_rendered":{"charts":0,"images":0,"macros":0,"external_links":0,"defined_names":1,"comments":0,"pivot_tables":0},"unopened":[],"bounds":{"document_bytes":16777216,"sheet_cells":100000,"run_cost":"one","rows_first":2000,"rows_last":500,"rows_between":2000,"halvings":0,"cell_chars":16384,"cell_head_chars":4096},"cells_cut":0,"cells_raw":0,"read":"whole","date_system":"1900"}

{"sheet":"phenodata","index":0,"n_rows":25,"n_cols":18,"rows_kept":25,"cut":false,"hidden":false,"merged":[]}
["SampleID","SampleName","SampleName_Generated","Experiment","Organism","Treatment Group","Developmental stage","Tissue/body part","Sample biol repl no","Batch","dpt [days]","WhichControlToUse","DateSampling","DateIsolation","SampleStorage","ng/ul totRNA","ul totRNA","ug totRNA"]
["RI0043",{"$f":"F2&\"-\"&I2","v":"H2O-1"},{"$f":" CONCATENATE(G2, \"_\", H2, \"-\",I2)","v":"larva_3rd_instar_whole_larva-1"},"target selection","Leptinotarsa decemlineata","H2O","larva_3rd_instar","whole_larva",1,1,4,"dsegfp","2016-06-08",null,"CU0381"]
["RI0044",{"$f":"F3&\"-\"&I3","v":"H2O-2"},"larva_3rd_instar_whole_larva-2","target selection","Leptinotarsa decemlineata","H2O","larva_3rd_instar","whole_larva",2,1,4,"dsegfp","2016-06-08",null,"CU0381"]
["RI0045","H2O-3","larva_3rd_instar_whole_larva-3","target selection","Leptinotarsa decemlineata","H2O","larva_3rd_instar","whole_larva",3,1,4,"dsegfp","2016-06-08",null,"CU0381"]
["RI0046","H2O-4","larva_3rd_instar_whole_larva-4","target selection","Leptinotarsa decemlineata","H2O","larva_3rd_instar","whole_larva",4,1,4,"dsegfp","2016-06-08",null,"CU0381"]
["RI0047","dsegfp-1","larva_3rd_instar_whole_larva-1","target selection","Leptinotarsa decemlineata","dsegfp","larva_3rd_instar","whole_larva",1,1,4,"dsegfp","2016-06-08",null,"CU0381"]
["RI0048","dsegfp-2","larva_3rd_instar_whole_larva-2","target selection","Leptinotarsa decemlineata","dsegfp","larva_3rd_instar","whole_larva",2,1,4,"dsegfp","2016-06-08",null,"CU0381"]
["RI0049","dsegfp-3","larva_3rd_instar_whole_larva-3","target selection","Leptinotarsa decemlineata","dsegfp","larva_3rd_instar","whole_larva",3,1,4,"dsegfp","2016-06-08",null,"CU0381"]
["RI0050","dsegfp-4","larva_3rd_instar_whole_larva-4","target selection","Leptinotarsa decemlineata","dsegfp","larva_3rd_instar","whole_larva",4,1,4,"dsegfp","2016-06-08",null,"CU0381"]
["RI0051","dsvATPaseE-1","larva_3rd_instar_whole_larva-1","target selection","Leptinotarsa decemlineata","dsvATPaseE","larva_3rd_instar","whole_larva",1,1,4,"dsegfp","2016-06-08",null,"CU0381"]
["RI0052","dsvATPaseE-2","larva_3rd_instar_whole_larva-2","target selection","Leptinotarsa decemlineata","dsvATPaseE","larva_3rd_instar","whole_larva",2,1,4,"dsegfp","2016-06-08",null,"CU0381"]
["RI0053","dsvATPaseE-3","larva_3rd_instar_whole_larva-3","target selection","Leptinotarsa decemlineata","dsvATPaseE","larva_3rd_instar","whole_larva",3,1,4,"dsegfp","2016-06-08",null,"CU0381"]
["RI0054","dsvATPaseE-4","larva_3rd_instar_whole_larva-4","target selection","Leptinotarsa decemlineata","dsvATPaseE","larva_3rd_instar","whole_larva",4,1,4,"dsegfp","2016-06-08",null,"CU0381"]
["RI0055","dsalas-1","larva_3rd_instar_whole_larva-1","target selection","Leptinotarsa decemlineata","dsalas","larva_3rd_instar","whole_larva",1,1,4,"dsegfp","2016-06-08",null,"CU0381"]
["RI0056","dsalas-2","larva_3rd_instar_whole_larva-2","target selection","Leptinotarsa decemlineata","dsalas","larva_3rd_instar","whole_larva",2,1,4,"dsegfp","2016-06-08",null,"CU0381"]
["RI0057","dsalas-3","larva_3rd_instar_whole_larva-3","target selection","Leptinotarsa decemlineata","dsalas","larva_3rd_instar","whole_larva",3,1,4,"dsegfp","2016-06-08",null,"CU0381"]
["RI0058","dsalas-4","larva_3rd_instar_whole_larva-4","target selection","Leptinotarsa decemlineata","dsalas","larva_3rd_instar","whole_larva",4,1,4,"dsegfp","2016-06-08",null,"CU0381"]
["RI0059","dsJHBP-1","larva_3rd_instar_whole_larva-1","target selection","Leptinotarsa decemlineata","dsJHBP","larva_3rd_instar","whole_larva",1,1,4,"dsegfp","2016-06-08",null,"CU0381"]
["RI0060","dsJHBP-2","larva_3rd_instar_whole_larva-2","target selection","Leptinotarsa decemlineata","dsJHBP","larva_3rd_instar","whole_larva",2,1,4,"dsegfp","2016-06-08",null,"CU0381"]
["RI0061","dsJHBP-3","larva_3rd_instar_whole_larva-3","target selection","Leptinotarsa decemlineata","dsJHBP","larva_3rd_instar","whole_larva",3,1,4,"dsegfp","2016-06-08",null,"CU0381"]
["RI0062","dsJHBP-4","larva_3rd_instar_whole_larva-4","target selection","Leptinotarsa decemlineata","dsJHBP","larva_3rd_instar","whole_larva",4,1,4,"dsegfp","2016-06-08",null,"CU0381"]
["RI0063","dsmesh-1","larva_3rd_instar_whole_larva-1","target selection","Leptinotarsa decemlineata","dsmesh","larva_3rd_instar","whole_larva",1,1,4,"dsegfp","2016-06-08",null,"CU0381"]
["RI0064","dsmesh-2","larva_3rd_instar_whole_larva-2","target selection","Leptinotarsa decemlineata","dsmesh","larva_3rd_instar","whole_larva",2,1,4,"dsegfp","2016-06-08",null,"CU0381"]
["RI0065","dsmesh-3","larva_3rd_instar_whole_larva-3","target selection","Leptinotarsa decemlineata","dsmesh","larva_3rd_instar","whole_larva",3,1,4,"dsegfp","2016-06-08",null,"CU0381"]
["RI0066","dsmesh-4","larva_3rd_instar_whole_larva-4","target selection","Leptinotarsa decemlineata","dsmesh","larva_3rd_instar","whole_larva",4,1,4,"dsegfp","2016-06-08",null,"CU0381"]